Cogmind - Beta 11 @@@ ROGUE MODE // 2022.04.13 @ 03:41:44 Player: deepledi Result: Destroyed by G-34 Mercenary with Small Laser Performance ------------- Evolutions (1) 500 Regions Visited (2) 400 Robots Destroyed (47) 235 Value Destroyed (861) 861 Prototype IDs (1) 20 Alien Tech Used (0) 0 Bonus (0) 0 TOTAL SCORE: 2016 Bonus ------- None Cogmind --------- Core Integrity 0/400 Matter 260/300 Energy 125/125 System Corruption 0% Temperature Cool (6) Movement Walking (190) Ox1 Location -9/Materials Parts ------- > --- POWER (1) -------- Light Ion Engine > --- PROPULSION (2) --- Aluminum Leg Improved Aluminum Leg > --- UTILITY (4) ------ Signal Interpreter Core Shielding Medium Armor Plating Medium Armor Plating > --- WEAPON (2) ------- Particle Gun Maul > --- INVENTORY (5) ---- Improved Heat Sink Structural Scanner Sensor Array ECM Suite Mini Grenade Launcher Peak State ------------ > --- POWER ------------ Light Ion Engine > --- PROPULSION ------- Improved Aluminum Leg Improved Aluminum Leg > --- UTILITY ---------- Improved Heat Sink Small Storage Unit Sensor Array Core Shielding > --- WEAPON ----------- Assault Rifle Maul > --- INVENTORY -------- Light Ion Engine Light Ion Engine Improved Aluminum Leg Improved Aluminum Leg Structural Scanner Signal Interpreter ECM Suite Assault Rifle [Rating: 15] Favorites ----------- Power Light Ion Engine Engine Light Ion Engine Propulsion Improved Aluminum Leg Leg Improved Aluminum Leg Wheel Wheel Utility Small Storage Unit Device Sensor Array Storage Small Storage Unit Processor Signal Interpreter Protection Medium Armor Plating Weapon Assault Rifle Energy Gun Particle Gun Ballistic Gun Assault Rifle Special Weapon Plasma Cutter Impact Weapon Maul Build | -11 -10 -9 ------- Run | Scr Mat Mat Slots Evolved 2 | . . 2 Power . | . . . Propulsion . | . . . Utility 2 | . . 2 Weapon . | . . . Parts Attached 42 | 6 4 32 Power 5 | 1 . 4 Engine 5 | 1 . 4 Core . | . . . Reactor . | . . . Propulsion 9 | 2 2 5 Treads . | . . . Leg 7 | . 2 5 Wheel 2 | 2 . . Hover . | . . . Flight . | . . . Utility 20 | 1 1 18 Device 7 | . . 7 Storage 1 | 1 . . Processor 1 | . . 1 Hackware . | . . . Protection 11 | . 1 10 Artifact . | . . . Weapon 8 | 2 1 5 Energy Gun 2 | . . 2 Energy Cannon . | . . . Ballistic Gun 4 | 2 1 1 Ballistic Cannon . | . . . Launcher . | . . . Special Weapon 1 | . . 1 Impact Weapon 1 | . . 1 Slashing Weapon . | . . . Piercing Weapon . | . . . Special Melee Weapon . | . . . Unidentified Prototypes 1 | . 1 . Parts Lost 10 | . 2 8 Power 2 | . . 2 Propulsion 4 | . 1 3 Utility 2 | . . 2 Weapon 2 | . 1 1 Highest Loss Streak 4 | . 1 4 To Critical Strikes . | . . . Average Slot Usage (%) 92 | . 96 90 Engine 11 | . 14 9 Leg 15 | . 5 21 Wheel 7 | . 22 . Device 7 | . . 11 Storage 11 | . 14 9 Processor 5 | . . 8 Protection 12 | . 12 12 Energy Gun 2 | . . 3 Ballistic Gun 11 | . 26 4 Impact Weapon 5 | . . 8 Naked Turns . | . . . Heaviest Build 28 | 12 15 28 Greatest Support 26 | 20 26 26 Greatest Overweight (x) 2 | . 1 2 Average Overweight (x) . | . . . Largest Inventory Capacity 8 | 8 8 8 Average Capacity 7 | 6 8 7 Most Carried 8 | 3 8 8 Average Carried 6 | 1 5 6 Final Capacity 8 | 8 8 5 Final Carried 6 | 3 6 5 Class Distribution -------------------- 100% | Mutant Dominant Class ---------------- Mutant | -10/Materials Mutant | -9/Materials Resources | -11 -10 -9 ----------- Run | Scr Mat Mat Matter Collected 993 | 211 234 548 Remotely . | . . . Salvage Created 1386 | . 373 1013 Parts 80 | . 27 53 Haulers Intercepted 4 | . 1 3 Recyclers Shooed 4 | . 2 2 Parts Field Recycled . | . . . Retrieved Matter . | . . . Parts Self-Destructed . | . . . Prevented . | . . . Kills | -11 -10 -9 ------- Run | Scr Mat Mat Combat Hostiles Destroyed 27 | . 9 18 Melee 5 | . . 5 Guns 14 | . 9 5 Cannons 1 | . . 1 Classes Destroyed 9 | . 5 4 Worker 4 | . . 4 Builder 3 | . . 3 Hauler 4 | . 1 3 Recycler 2 | . 1 1 Watcher 7 | . 2 5 Swarmer 13 | . 6 7 Grunt 8 | . 3 5 Duelist 1 | . . 1 Sentry 5 | . . 5 Best Kill Streak 4 | . 3 4 Combat Bots Only 3 | . 3 3 Max Kills in Single Turn 2 | . 2 2 Gunslinging 1 | . 1 . Exploded . | . . . Melee 1 | . . 1 Uniques/NPCs Destroyed . | . . . Combat | -11 -10 -9 -------- Run | Scr Mat Mat Damage Taken 1663 | . 224 1439 Core 457 | . 53 404 Absorbed by Shields . | . . . Redirected to Shielding 27 | . . 27 Core Remaining (%) 89 | 100 78 . Volleys Fired 104 | 6 47 51 Largest 2 | 2 2 2 Hottest 65 | 40 40 65 Shots Fired 171 | 12 87 72 Gun 166 | 12 87 67 Cannon . | . . . Launcher . | . . . Special 5 | . . 5 Kinetic 148 | 12 87 49 Thermal 15 | . . 15 Explosive . | . . . Electromagnetic 8 | . . 8 Robot Hit Streak 16 | 4 5 16 Robot Miss Streak 5 | 2 5 4 Penetration Max . | . . . Secondary Targets 3 | . 2 1 Max Gunslinging Chain 1 | . 1 1 Shots Hit Robots 140 | 9 45 86 Core Hits 50 | 1 19 30 Critical Kills 3 | . . 3 Critical Parts Destroyed 5 | . . 5 Critical Strikes 8 | . . 8 Smash 8 | . . 8 Melee Attacks 65 | . . 65 Impact 65 | . . 65 Slashing . | . . . Piercing . | . . . Sneak Attacks 7 | . . 7 Combat Hostiles . | . . . Follow-up Attacks . | . . . Damage Inflicted 3176 | 103 600 2473 Guns 1293 | 103 600 590 Cannons . | . . . Explosions . | . . . Melee 1851 | . . 1851 Ramming . | . . . Kinetic 1117 | 103 600 414 Thermal 79 | . . 79 Explosive . | . . . Electromagnetic 129 | . . 129 Impact 1851 | . . 1851 Slashing . | . . . Piercing . | . . . Highest Corruption . | . . . Average Corruption . | . . . Corruption Purged . | . . . Corruption Blocked . | . . . Overload Shots . | . . . Overflow Damage 548 | . . 548 Projectiles . | . . . Explosions . | . . . Melee 548 | . . 548 Knockbacks 5 | . . 5 Impact 5 | . . 5 Kinetic . | . . . Secondary . | . . . Self-Inflicted Damage . | . . . Shots . | . . . Rammed . | . . . Targets Rammed . | . . . Kicked . | . . . Crushed . | . . . Highest Temperature 150 | 6 8 150 Average Temperature 35 | 6 3 47 Received Heat Transfer 597 | . 72 525 Siege Activations . | . . . Robots Corrupted 1 | . . 1 Combat Hostiles 1 | . . 1 Parts Fried 20 | . . 20 Impact Corruptions 24 | . . 24 Robots Melted . | . . . Combat Hostiles . | . . . Parts Melted 1 | . . 1 Heat Transferred 222 | . . 222 Parts Sabotaged . | . . . Parts Stolen . | . . . Parts Stripped . | . . . Power Chain Reactions . | . . . Missiles Intercepted . | . . . Alert | -11 -10 -9 ------- Run | Scr Mat Mat Peak Influence 391 | . 196 391 Initial 37 | . . 37 Average 161 | . 63 218 Maximum Alert Level 1 | . . 1 Low Security (%) 59 | 100 100 37 Level 1 40 | . . 62 Level 2 . | . . . Level 3 . | . . . Level 4 . | . . . Level 5 . | . . . High Security . | . . . Max Security . | . . . Squads Dispatched 3 | . 1 2 Investigation 1 | . . 1 Extermination . | . . . Reinforcement 2 | . 1 1 Assault . | . . . Garrison . | . . . Intercept . | . . . Searches Triggered . | . . . Construction Impeded . | . . . Haulers Reinforced . | . . . Active Scanning Responses . | . . . Cargo Convoy Interrupts . | . . . Stealth | -11 -10 -9 --------- Run | Scr Mat Mat Distress Signals 1 | . . 1 Communications Jammed . | . . . Distress Signals . | . . . Times Spotted 49 | . 16 33 Peak Tracking Total 5 | . 3 5 Tactical Retreats 6 | . 1 5 Traps | -11 -10 -9 ------- Run | Scr Mat Mat Traps Triggered . | . . . Indirectly . | . . . Trap Hack Attempts . | . . . Triggered . | . . . Disarmed . | . . . Reprogrammed . | . . . Reused . | . . . Traps Extracted . | . . . Installed . | . . . Triggered . | . . . Machines | -11 -10 -9 ---------- Run | Scr Mat Mat Machines Disabled 2 | . 1 1 Max in Single Turn 1 | . 1 1 Machines Sabotaged . | . . . Garrisons Compromised . | . . . Overloaded Fab Kills . | . . . Hacking | -11 -10 -9 --------- Run | Scr Mat Mat Machines Accessed . | . . . Terminals . | . . . Fabricators . | . . . Repair Stations . | . . . Recycling Units . | . . . Scanalyzers . | . . . Garrison Access . | . . . Total Hacks . | . . . Successful . | . . . Failed . | . . . Catastrophic . | . . . Database Lockouts . | . . . Manual . | . . . Terminals . | . . . Fabricators . | . . . Repair Stations . | . . . Recycling Units . | . . . Scanalyzers . | . . . Garrison Access . | . . . Terminal Hacks . | . . . Fabricator Hacks . | . . . Repair Station Hacks . | . . . Recycling Unit Hacks . | . . . Scanalyzer . | . . . Garrison Access Hacks . | . . . Unauthorized Hacks . | . . . Terminals . | . . . Fabricators . | . . . Repair Stations . | . . . Recycling Units . | . . . Scanalyzers . | . . . Garrison Access . | . . . Data Cores Recovered . | . . . Used . | . . . Hacking Detections . | . . . Full Trace Events . | . . . Feedback Events . | . . . Feedback Blocked . | . . . Robot Schematics Acquired . | . . . Robots Built . | . . . Authchips . | . . . Time . | . . . Total Robot Build Rating . | . . . Part Schematics Acquired . | . . . Parts Built . | . . . Authchips . | . . . Time . | . . . Total Part Build Rating . | . . . Parts Repaired . | . . . Time . | . . . Parts Recycled . | . . . Recycled Matter . | . . . Retrieved Matter . | . . . Retrieved Components . | . . . Parts Scanalyzed . | . . . Part Schematics Acquired . | . . . Parts Damaged . | . . . Bothacking | -11 -10 -9 ------------ Run | Scr Mat Mat Used RIF Installer . | . . . Robots Hacked . | . . . Non-combat . | . . . Combat . | . . . Robot Hacks Applied . | . . . Relay Couplers Released . | . . . Fabnet Peak Effective % . | . . . Robots Rewired . | . . . Allies Hacked . | . . . Hacks Repelled . | . . . Allies | -11 -10 -9 -------- Run | Scr Mat Mat Total Allies . | . . . Largest Group . | . . . Highest-Rated Group . | . . . Highest-Rated Ally . | . . . Total Orders . | . . . Ally Attacks . | . . . Total Damage . | . . . Kills . | . . . Allies Corrupted . | . . . Allies Melted . | . . . Intel | -11 -10 -9 ------- Run | Scr Mat Mat Robot Analysis Total . | . . . Derelict Logs Recovered . | . . . Drone Launches . | . . . Drone Recoveries . | . . . Exploration | -11 -10 -9 ------------- Run | Scr Mat Mat Turns Passed 2125 | 77 667 1381 Spaces Moved 1315 | 56 581 678 Core 3 | 2 . 1 Treads . | . . . Legs 777 | . 100 677 Wheels 535 | 54 481 . Hover . | . . . Flight . | . . . Fastest Speed 50 | 50 80 120 Average Speed 107 | 78 86 127 Slowest Speed 190 | 80 120 190 Overloaded Moves . | . . . Propulsion Burnouts . | . . . Robots Hopped . | . . . Cave-ins Triggered . | . . . Exploration Rate (%) 46 | 5 91 44 Regions Visited 2 Branch Regions . Pre-discovered Areas . | . . . Known Exits Taken . | . . . Unknown Exits Taken 2 | 1 1 . Scrap Searched . | . . . Spaces Dug 6 | . . 6 Terrain Destroyed 6 | . . 6 Melee 6 | . . 6 Projectile . | . . . AOE . | . . . Terrain Rammed . | . . . Walls Destroyed . | . . . Machines Disabled . | . . . Actions | -11 -10 -9 --------- Run | Scr Mat Mat Total 1714 | 76 657 981 Wait 139 | . 11 128 Move 1313 | 55 580 678 Hop . | . . . Pick Up 38 | 9 10 19 Fast Attach . | . . . Attach 24 | 6 4 14 Detach . | . . . Swap 19 | . 1 18 Drop 12 | . 4 8 Fire 104 | 6 47 51 Melee 65 | . . 65 Ram . | . . . Kick . | . . . Crush . | . . . Escape Stasis . | . . . Rewire . | . . . Trap . | . . . Miscellaneous . | . . . Route ------- -11/Scrapyard -10/Materials (discovered 4 exits: [*Mat x3] / [*Min]) -9/Materials (discovered 1 exit: *Min) History --------- Turn | Location | Event 14 | -11/Scrapyard | Discovered new exit (range 15) 78 | -11/Scrapyard | Entered Materials 232 | -10/Materials | Discovered new exit (range 16) 303 | -10/Materials | Build established: Mutant 363 | -10/Materials | Discovered new exit (range 12) 507 | -10/Materials | Discovered new exit (range 4) 715 | -10/Materials | Discovered new exit (range 16) 745 | -10/Materials | Entered another Materials area 745 | -9/Materials | Evolved 2 slots: Utility x2 1118 | -9/Materials | Discovered new exit (range 9) 1241 | -9/Materials | Identified exit to Mines 1459 | -9/Materials | Core integrity fell below 50% 1567 | -9/Materials | Core integrity fell below 20% 1594 | -9/Materials | Lost 4 parts (1p2n1u) 2126 | -9/Materials | Destroyed by G-34 Mercenary with Small Laser Last Messages --------------- 01944_ Destroyed Structural Scanner. 01944_ U-05 Engineer system corrupted by crushing effect. 01944_ Welding Torch fried. 01944_ Wheel fried. 01944_ U-05 Engineer destroyed. 01985_ Y-45 Defender suffers critical hit (Smash). 01985_ Destroyed Heat Sink. 01985_ Y-45 Defender system corrupted by crushing effect. 01986_ Y-45 Defender system terminally corrupted. 01986_ Heat Sink fried. 01997_ Acquired 10 matter. 01997_ Dropped Sml. Storage Unit. 01999_ Acquired 10 matter. 02002_ Acquired Imp. Heat Sink. 02007_ Dropped Lgt. Ion Engine. 02007_ Acquired Sensor Array. 02044_ O-16 Technician: "IFF HANDSHAKE FAILED. SECURING TERMINAL." 02051_ ALERT: Hostiles spotted, dispatching reinforcements to Terminal M005. 02125_ U-05 Engineer builds a Wall. Map ----- +----------------------------------------------------+ | """" #?# """"" # # # # """ #???????? | | """ #???""""" # ########### # """ #???????? | | ?????? # %##"""""""## %+% """ #???????? | | ???########+### % ##" !"! "#T # #???????? | | ##???# ## ### %##" "## ########???????? | | ?????# """ # #?????????? | | ?????# """%+ > ###???????? | | ?????# """ # ? | | ?????#* ## #####+## ##+##############???? | | ?????#[[ ## # ] ######### % #??????????? | | ?????# ]] ## # """#???????# ] #??????????? | | ?????#[] ## # """#???????# ] #??????????? | | ?????#]] ## # """#???????# ] ##?????????? | | ?????# ##%# #???????# #?????????? | | ?????# ## # #???????# """ "" ##?????????? | | ?????# ## ########???????# """ """#??????????? | | ?????######## ###????????????# """ S"#??????????? | | ??????????# #????????????# #??????????? | | ???????####= #????????????####+#####??????????? | | ???????#%[%% #???????????????# #??????????????? | | ???????#!## #########???????# ########???????? | | ???????#*## # #???????# # #???????? | | ???????# ########| !#???????#!# #???????? | | ???????# #??????# ##??????#%# #???????? | | ???????# #??????# """ ######??#=# #???????? | | ?????### ###????# """ #@ #??#%# #???????? | | ?????# ###### """ # #??#%+%! #???????? | | ###### # # #??#=#####+##???????? | | / """ # !! #??#%#?#! #???????? | | ## #^ """ # !! #??# #?# #???????? | | ??# #### # """ # !! #??# #?# #???????? | | ???###+###??# # ! # #??# #?# #???????? | | ?????? ????#+######### [ ??# #?# #???????? | | ??????? ???? ???????#[ g #### ### #???????? | | ?????? ]]]??? ??????####/### #] #???????? | | ?????? ]]]??# ?????# u # #???????? | | ?????# ]] ?# ?????+ T + #???????? | | ?????#! ?# !//????# ######???????? | | ?????###+##### !/ ????# #### #????????????? | | ?????????????# !/ ?????? ???## ##????????????? | | ?????????????#] ????? ????# ??????????????? | | ?????????????#####+##???? ????# ??????????????? | | ???????????????????????????????# ??????????????? | | ???????????????????????????????# ??????????????? | | ???????????????????????????????# ??????????????? | | ???????????????????????????????# ???????????????? | | ??????????????????????????????? ???????????????? | | ??????????????????????????????? ???????????????? | | ??????????????????????????????+ ???????????????? | | ??????????????????????????????# ???????????????? | +----------------------------------------------------+ Best States ------------- Heat Dissipation 42 Energy Generation 10 Energy Capacity 125 Matter Stores 300 Matter Capacity 300 Sight Range 16 Robot Scan Range 14 Terrain Scan Density 10 ECM Strength 1 Armor Coverage 450 Core Shielding 20 Evasion (%) 55 Item Schematics ----------------- None Robot Schematics ------------------ None Fabricated ------------ Nothing Alien Tech Used ----------------- None Achievements -------------- None Challenges ------------ None Game ------ Seed RemoteReactiveAmplifier Manual? 0 Play Time 00:16:51 Cumulative 42.5 hours Start 2022.04.13 @ 03:23:06 End 2022.04.13 @ 03:41:44 Sessions 1 Manual Loads 0 Difficulty Rogue Special Mode None Game No. 47 Rogue 47 Adventurer 0 Explorer 0 Win Type - Total 0 Types 0/0/0/0/0/0/0/0/0 Lore% 29 Gallery% 42 Achievement% 33 Wizard Run 0 Options --------- ASCII 0 Keyboard 0 Movement Arrows Keybinds 0 Fullscreen 2 Font 18/SmallcapsGlow Map View 76x50 Tactical HUD 1 Map Filters NONE Filters NONE Steam 1 RUN: 205632db-c20f-4560-9b6e-d539c1188772